[Event "Western Asian Girls Chess-ch 2023"]
[Site "Colombo"]
[Date "2023.11.30"]
[Round "1.7"]
[White "Narthavi, S."]
[Black "Bhagyashree Patil"]
[Result "1/2-1/2"]
[ECO "D55"]
[WhiteElo "1306"]
[BlackElo "1830"]
[Annotator "NA RC"]
[PlyCount "72"]
[EventDate "2023.11.30"]
[EventCountry "SRI"]
[SourceTitle "playchess.com"]
[Source "ChessBase"]
[SourceQuality "1"]
[TimeControl "5400+30"]

1. d4 {[%emt 0:00:03]} d5 {[%emt 0:03:19]} 2. c4 {[%emt 0:00:20]} e6 {[%emt 0:00:41]} 3. Nc3 {[%emt 0:00:19]} Nf6 {[%emt 0:00:21]} 4. Bg5 {[%emt 0:00:10]} Be7 {[%emt 1:28:09]} 5. e3 {[%emt 1:32:08]} b6 {[%emt 0:00:30]} 6. cxd5 {[%emt 0:00:30]} Nxd5 {[%emt 0:00:00]} 7. Bxe7 {[%emt 0:00:00]} Nxe7 {[%emt 0:00:00]} 8. Be2 {[%emt 0:00:00]} O-O {[%emt 0:00:00]} 9. Nf3 {[%emt 0:00:00]} Bb7 {[%emt 0:00:00]} 10. Rc1 {[%emt 0:00:00]} Nd7 {[%emt 0:00:00]} 11. O-O {[%emt 0:00:00]} c6 {[%emt 0:00:00]} 12. Ne4 {[%emt 0:00:00]} Qc7 {[%emt 0:00:00]} 13. Nc3 {[%emt 0:00:00]} Rfd8 {[%emt 0:00:00]} 14. Nd2 {[%emt 0:00:00]} Rac8 {[%emt 0:00:00]} 15. a4 {[%emt 0:00:00]} Qb8 {[%emt 0:00:00]} 16. Bf3 {[%emt 0:00:00]} e5 {[%emt 0:00:00]} 17. Re1 {[%emt 0:00:00]} exd4 {[%emt 0:00:00]} 18. exd4 {[%emt 0:00:00]} Nf5 {[%emt 0:00:00]} 19. d5 {[%emt 0:00:00]} cxd5 {[%emt 0:00:00]} 20. Nxd5 {[%emt 0:00:00]} Nc5 {[%emt 0:00:00]} 21. Nb3 {[%emt 0:00:00]} Nxa4 {[%emt 0:00:00]} 22. Rxc8 {[%emt 0:00:00]} Qxc8 {[%emt 0:00:00]} 23. Nd4 {[%emt 0:00:00]} Bxd5 {[%emt 0:00:57]} 24. Nxf5 {[%emt 0:00:00]} Qxf5 {[%emt 0:04:04]} 25. Qxa4 {[%emt 0:00:00]} Be6 {[%emt 0:00:46]} 26. Qxa7 {[%emt 0:00:00]} Qc5 {[%emt 0:00:09]} 27. Qa3 {[%emt 0:00:00]} g6 {[%emt 0:02:57]} 28. Qxc5 {[%emt 0:00:00]} bxc5 {[%emt 0:00:01]} 29. Rc1 {[%emt 0:00:00]} c4 {[%emt 0:00:24]} 30. Rd1 {[%emt 0:00:00]} Rb8 {[%emt 0:01:39]} 31. Rd2 {[%emt 0:00:00]} Kf8 {[%emt 0:00:15]} 32. Kf1 {[%emt 0:00:00]} Ke7 {[%emt 0:00:02]} 33. Ke2 {[%emt 0:00:00]} Bf5 {[%emt 0:01:36]} 34. Ke3 {[%emt 0:00:00]} Rc8 {[%emt 0:01:08]} 35. Kd4 {[%emt 0:00:00]} Be6 {[%emt 0:00:29]} 36. Kc3 {[%emt 0:00:00]} Rb8 {[%emt 0:00:21]} 1/2-1/2

[Event "Western Asian Girls Chess-ch 2023"]
[Site "Colombo"]
[Date "2023.11.30"]
[Round "1.8"]
[White "Sachi Jain"]
[Black "Perera, B Yenuthi Sahanlee"]
[Result "1-0"]
[ECO "B07"]
[WhiteElo "1743"]
[BlackElo "1296"]
[Annotator "NA RC"]
[PlyCount "45"]
[EventDate "2023.11.30"]
[EventCountry "SRI"]
[SourceTitle "playchess.com"]
[Source "ChessBase"]
[SourceQuality "1"]
[TimeControl "5400+30"]

1. e4 {[%emt 0:01:19]} d6 {[%emt 0:00:08]} 2. d4 {[%emt 0:00:09]} Nf6 {[%emt 0:00:08]} 3. Bd3 {[%emt 0:00:10]} g6 {[%emt 0:00:09]} 4. f4 {[%emt 0:00:08]} Bg7 {[%emt 0:00:11]} 5. Nf3 {[%emt 0:00:08]} c6 {[%emt 0:00:52]} 6. O-O {[%emt 0:01:04]} O-O {[%emt 0:00:39]} 7. Qe1 {[%emt 0:01:05]} Qb6 {[%emt 0:03:15]} 8. Na3 {[%emt 0:03:21]} Nbd7 {[%emt 0:02:43]} 9. c3 {[%emt 0:03:24]} Re8 {[%emt 0:02:42]} 10. e5 {[%emt 0:00:46]} dxe5 {[%emt 0:00:59]} 11. fxe5 {[%emt 0:00:02]} Nd5 {[%emt 0:00:54]} 12. Nc4 {[%emt 0:00:39]} Qc7 {[%emt 0:00:46]} 13. Ng5 {[%emt 0:01:02]} Rf8 {[%emt 0:06:52]} 14. e6 {[%emt 0:02:08]} N7f6 {[%emt 0:02:52]} 15. exf7+ {[%emt 0:00:51]} Kh8 {[%emt 0:01:35]} 16. Qh4 {[%emt 0:00:34]} Nh5 {[%emt 0:15:39]} 17. Nxh7 {[%emt 0:06:02]} Bf6 {[%emt 0:11:20]} 18. Nxf6 {[%emt 0:04:24]} Ndxf6 {[%emt 0:00:31]} 19. Bxg6 {[%emt 0:01:58]} Bg4 {[%emt 0:05:02]} 20. Bxh5 {[%emt 0:00:10]} Bxh5 {[%emt 0:00:20]} 21. Rxf6 {[%emt 0:00:04]} exf6 {[%emt 0:00:29]} 22. Qxf6+ {[%emt 0:00:08]} Kh7 {[%emt 0:00:34]} 23. Qh6# {[%emt 0:00:03]} 1-0

[Event "Western Asian Girls Chess-ch 2023"]
[Site "Colombo"]
[Date "2023.11.30"]
[Round "2.1"]
[White "Sultanbek, Zeinep"]
[Black "Sanudula, K M Dahamdi"]
[Result "1/2-1/2"]
[ECO "E05"]
[WhiteElo "2008"]
[BlackElo "1709"]
[Annotator "NA RC"]
[PlyCount "86"]
[EventDate "2023.11.30"]
[EventCountry "SRI"]
[SourceTitle "playchess.com"]
[Source "ChessBase"]
[SourceQuality "1"]
[TimeControl "5400+30"]

1. Nf3 {[%emt 0:00:24]} Nf6 {[%emt 0:06:39]} 2. g3 {[%emt 0:00:04]} e6 {[%emt 0:00:05]} 3. Bg2 {[%emt 0:00:05]} d5 {[%emt 0:00:06]} 4. O-O {[%emt 0:00:05]} Be7 {[%emt 0:00:11]} 5. d4 {[%emt 0:00:08]} O-O {[%emt 0:00:31]} 6. c4 {[%emt 0:00:02]} dxc4 {[%emt 0:00:12]} 7. Qc2 {[%emt 0:00:06]} a6 {[%emt 0:00:19]} 8. a4 {[%emt 0:00:05]} c6 {[%emt 0:00:59]} 9. Qxc4 {[%emt 0:00:43]} b5 {[%emt 0:00:12]} 10. Qc2 {[%emt 0:00:21]} Bb7 {[%emt 0:00:15]} 11. Rd1 {[%emt 0:01:07]} a5 {[%emt 0:00:59]} 12. Ne5 {[%emt 0:02:48]} Qb6 {[%emt 0:01:42]} 13. Nc3 {[%emt 0:05:19]} Na6 {[%emt 0:08:38]} 14. e4 {[%emt 0:04:23]} Nb4 {[%emt 0:05:38]} 15. Qe2 {[%emt 0:00:08]} Ba6 {[%emt 0:00:34]} 16. Be3 {[%emt 0:02:18]} Qb7 {[%emt 0:06:27]} 17. axb5 {[%emt 0:00:15]} Bxb5 {[%emt 0:00:14]} 18. Nxb5 {[%emt 0:00:04]} Qxb5 {[%emt 0:01:29]} 19. Qxb5 {[%emt 0:01:10]} cxb5 {[%emt 0:00:04]} 20. d5 {[%emt 0:01:29]} exd5 {[%emt 0:02:00]} 21. exd5 {[%emt 0:00:02]} Bd6 {[%emt 0:02:33]} 22. Nc6 {[%emt 0:00:09]} a4 {[%emt 0:00:45]} 23. Nxb4 {[%emt 0:01:48]} Bxb4 {[%emt 0:00:06]} 24. d6 {[%emt 1:19:27]} Rad8 {[%emt 0:04:12]} 25. Bc6 {[%emt 0:00:00]} Bxd6 {[%emt 0:01:10]} 26. Bxb5 {[%emt 0:00:00]} Be5 {[%emt 0:00:10]} 27. Bc5 {[%emt 0:00:00]} Rxd1+ {[%emt 0:02:12]} 28. Rxd1 {[%emt 0:00:00]} Rb8 {[%emt 0:00:32]} 29. Ba7 {[%emt 0:00:00]} Ra8 {[%emt 0:01:50]} 30. Bc6 {[%emt 0:00:00]} Rc8 {[%emt 0:00:15]} 31. Bb7 {[%emt 0:00:00]} Re8 {[%emt 0:00:36]} 32. Rd2 {[%emt 0:00:00]} h6 {[%emt 0:01:16]} 33. Bc6 {[%emt 0:00:00]} Rc8 {[%emt 0:02:05]} 34. Bxa4 {[%emt 0:00:00]} Ra8 {[%emt 0:06:15]} 35. Bc2 {[%emt 0:00:00]} Bxb2 {[%emt 0:00:35]} 36. Be3 {[%emt 0:00:00]} Bc1 {[%emt 0:00:46]} 37. Rd3 {[%emt 0:00:00]} Bxe3 {[%emt 0:00:08]} 38. Rxe3 {[%emt 0:00:00]} g6 {[%emt 0:00:47]} 39. Re7 {[%emt 0:00:00]} Re8 {[%emt 0:00:21]} 40. Rb7 {[%emt 0:00:00]} Rd8 {[%emt 0:00:08]} 41. Ba4 {[%emt 0:00:00]} Rd4 {[%emt 0:00:35]} 42. Ra7 {[%emt 0:00:00]} Rd2 {[%emt 0:00:18]} 43. Bb3 {[%emt 0:00:00]} Rd7 {[%emt 0:00:04]} 1/2-1/2

[Event "Western Asian Girls Chess-ch 2023"]
[Site "Colombo"]
[Date "2023.11.30"]
[Round "2.2"]
[White "Rindhiya V"]
[Black "Pallie, Ehsha Mishela"]
[Result "1-0"]
[ECO "B90"]
[WhiteElo "1876"]
[BlackElo "1569"]
[Annotator "NA COMBH"]
[PlyCount "95"]
[EventDate "2023.11.30"]
[EventCountry "SRI"]
[SourceTitle "playchess.com"]
[Source "ChessBase"]
[SourceQuality "1"]
[TimeControl "5400+30"]

1. e4 {[%emt 0:00:02]} c5 {[%emt 0:00:08]} 2. Nf3 {[%emt 0:00:08]} d6 {[%emt 0:00:07]} 3. d4 {[%emt 0:00:04]} cxd4 {[%emt 0:00:06]} 4. Nxd4 {[%emt 0:00:04]} Nf6 {[%emt 0:00:06]} 5. Nc3 {[%emt 0:00:05]} a6 {[%emt 0:00:03]} 6. Be3 {[%emt 0:00:13]} e5 {[%emt 0:00:09]} 7. Nb3 {[%emt 0:00:19]} Be6 {[%emt 0:00:05]} 8. f3 {[%emt 0:00:23]} h5 {[%emt 0:00:16]} 9. Nd5 {[%emt 0:00:54]} Bxd5 {[%emt 0:00:16]} 10. exd5 {[%emt 0:00:04]} Nbd7 {[%emt 0:00:13]} 11. Qd2 {[%emt 0:00:35]} g6 {[%emt 0:00:37]} 12. Be2 {[%emt 0:00:29]} Rc8 {[%emt 0:02:18]} 13. c4 {[%emt 0:11:50]} Bg7 {[%emt 0:02:04]} 14. O-O {[%emt 0:01:08]} Nh7 {[%emt 0:22:30]} 15. Na5 {[%emt 0:18:32]} Qc7 {[%emt 0:14:26]} 16. Rac1 {[%emt 0:07:10]} O-O {[%emt 0:06:04]} 17. b4 {[%emt 0:04:33]} b6 {[%emt 0:13:08]} 18. Nc6 {[%emt 0:05:14]} Nb8 {[%emt 0:01:04]} 19. Nxb8 {[%emt 0:00:11]} Rxb8 {[%emt 0:03:00]} 20. c5 {[%emt 0:00:54]} dxc5 {[%emt 0:03:18]} 21. bxc5 {[%emt 0:00:09]} b5 {[%emt 0:01:11]} 22. f4 {[%emt 0:18:31]} e4 {[%emt 0:05:44]} 23. f5 {[%emt 0:00:24]} Be5 {[%emt 0:04:44]} 24. Bf4 {[%emt 0:01:25]} Bxf4 {[%emt 0:09:14]} 25. Rxf4 {[%emt 0:02:03]} Qe5 {[%emt 0:02:02]} 26. fxg6 {[%emt 0:05:24]} fxg6 {[%emt 0:00:10]} 27. Rxf8+ {[%emt 0:00:04]} Rxf8 {[%emt 0:01:21]} 28. d6 {[%emt 0:01:12]} Ng5 {[%emt 0:02:29]} 29. c6 {[%emt 0:04:24]} e3 {[%emt 0:04:39]} 30. Qd3 {[%emt 0:00:48]} Kh7 {[%emt 0:03:17]} 31. Bxh5 {[%emt 0:16:57]} Nh3+ {[%emt 0:00:14]} 32. gxh3 {[%emt 0:00:05]} Qxh5 {[%emt 0:00:18]} 33. Qxe3 {[%emt 0:00:17]} Rf3 {[%emt 0:00:17]} 34. Qe7+ {[%emt 0:00:46]} Kh6 {[%emt 0:00:06]} 35. c7 {[%emt 0:01:45]} Rf5 {[%emt 0:01:37]} 36. c8=Q {[%emt 0:01:24]} Rg5+ {[%emt 0:00:13]} 37. Qxg5+ {[%emt 0:00:00]} Qxg5+ {[%emt 0:00:02]} 38. Kf2 {[%emt 0:00:27]} Qf4+ {[%emt 0:00:11]} 39. Ke2 {[%emt 0:00:09]} Qe4+ {[%emt 0:00:11]} 40. Kd2 {[%emt 0:00:07]} Qg2+ {[%emt 0:01:54]} 41. Kc3 {[%emt 0:00:16]} b4+ {[%emt 0:00:35]} 42. Kb3 {[%emt 0:00:23]} Qd5+ {[%emt 0:00:30]} 43. Qc4 {[%emt 0:00:04]} Qf3+ {[%emt 0:00:07]} 44. Kb2 {[%emt 0:00:20]} Qa3+ {[%emt 0:00:17]} 45. Kb1 {[%emt 0:00:10]} b3 {[%emt 0:00:29]} 46. Qh4+ {[%emt 0:00:21]} Kg7 {[%emt 0:00:05]} 47. Rc7+ {[%emt 0:00:04]} Kg8 {[%emt 0:00:08]} 48. Qd8# {[%emt 0:00:03]} 1-0

[Event "Western Asian Girls Chess-ch 2023"]
[Site "Colombo"]
[Date "2023.11.30"]
[Round "2.3"]
[White "Gamage, Desandhi Dhihansa"]
[Black "Ahmed, Walijah"]
[Result "1-0"]
[ECO "B30"]
[WhiteElo "1608"]
[BlackElo "1858"]
[Annotator "NA COMBH"]
[PlyCount "103"]
[EventDate "2023.11.30"]
[EventCountry "SRI"]
[SourceTitle "playchess.com"]
[Source "ChessBase"]
[SourceQuality "1"]
[TimeControl "5400+30"]

1. e4 {[%emt 0:00:03]} c5 {[%emt 0:00:08]} 2. Nc3 {[%emt 0:00:07]} e6 {[%emt 0:00:28]} 3. Nf3 {[%emt 0:01:30]} Nc6 {[%emt 0:01:18]} 4. Bb5 {[%emt 0:01:23]} a6 {[%emt 0:04:08]} 5. Bxc6 {[%emt 0:01:01]} bxc6 {[%emt 0:00:06]} 6. d3 {[%emt 0:00:12]} d6 {[%emt 0:02:52]} 7. O-O {[%emt 0:00:34]} Be7 {[%emt 0:00:36]} 8. Ne1 {[%emt 0:01:30]} Nf6 {[%emt 0:01:43]} 9. f4 {[%emt 0:00:17]} Qc7 {[%emt 0:01:17]} 10. Kh1 {[%emt 0:00:47]} O-O {[%emt 0:04:47]} 11. g4 {[%emt 0:01:18]} d5 {[%emt 0:08:08]} 12. g5 {[%emt 0:06:49]} Nd7 {[%emt 0:01:38]} 13. Qh5 {[%emt 0:03:51]} f5 {[%emt 0:06:50]} 14. e5 {[%emt 0:02:56]} g6 {[%emt 0:03:14]} 15. Qe2 {[%emt 0:03:01]} Nb6 {[%emt 0:02:24]} 16. Nf3 {[%emt 0:02:17]} Bb7 {[%emt 0:03:37]} 17. h4 {[%emt 0:02:54]} Kf7 {[%emt 0:55:46]} 18. b3 {[%emt 0:03:45]} Rfd8 {[%emt 0:00:00]} 19. a4 {[%emt 0:04:09]} a5 {[%emt 0:00:00]} 20. Nd1 {[%emt 0:05:22]} d4 {[%emt 0:00:00]} 21. h5 {[%emt 0:02:56]} Nd5 {[%emt 0:00:00]} 22. Kg2 {[%emt 0:01:40]} Rh8 {[%emt 0:00:00]} 23. Rh1 {[%emt 0:02:11]} Qd7 {[%emt 0:00:00]} 24. Nb2 {[%emt 0:01:10]} Nc3 {[%emt 0:00:00]} 25. Qe1 {[%emt 0:00:51]} Ba6 {[%emt 0:00:00]} 26. Bd2 {[%emt 0:07:47]} Nd5 {[%emt 0:00:00]} 27. Rh3 {[%emt 0:01:52]} Kg7 {[%emt 0:00:00]} 28. Qf2 {[%emt 0:03:16]} Rab8 {[%emt 0:00:00]} 29. Rah1 {[%emt 0:01:54]} Rbg8 {[%emt 0:00:00]} 30. hxg6 {[%emt 0:04:22]} Kxg6 {[%emt 0:00:00]} 31. Rh6+ {[%emt 0:00:41]} Kg7 {[%emt 0:00:00]} 32. Qh4 {[%emt 0:00:30]} Kf8 {[%emt 0:00:00]} 33. Rxh7 {[%emt 0:00:38]} Rxh7 {[%emt 0:00:00]} 34. Qxh7 {[%emt 0:00:04]} Rg7 {[%emt 0:00:00]} 35. g6 {[%emt 0:01:58]} Bd8 {[%emt 0:00:00]} 36. Qh8+ {[%emt 0:04:56]} Rg8 {[%emt 0:00:00]} 37. Qh6+ {[%emt 0:01:08]} Qg7 {[%emt 0:00:00]} 38. Qxg7+ {[%emt 0:01:51]} Rxg7 {[%emt 0:00:00]} 39. Rh6 {[%emt 0:00:51]} Kg8 {[%emt 0:00:00]} 40. Kg3 {[%emt 0:01:34]} Kf8 {[%emt 0:00:00]} 41. Nc4 {[%emt 0:07:21]} Nc3 {[%emt 0:01:49]} 42. Bxc3 {[%emt 0:01:02]} dxc3 {[%emt 0:00:04]} 43. Nd6 {[%emt 0:02:09]} Bxd3 {[%emt 0:01:33]} 44. cxd3 {[%emt 0:02:07]} Rxg6+ {[%emt 0:01:02]} 45. Rxg6 {[%emt 0:01:50]} c2 {[%emt 0:00:08]} 46. Rxe6 {[%emt 0:00:16]} Be7 {[%emt 0:01:29]} 47. Nxf5 {[%emt 0:00:55]} Bd8 {[%emt 0:00:42]} 48. Nd6 {[%emt 0:01:18]} Bb6 {[%emt 0:01:37]} 49. Re8+ {[%emt 0:00:40]} Kg7 {[%emt 0:00:16]} 50. f5 {[%emt 0:00:16]} c1=Q {[%emt 0:01:13]} 51. f6+ {[%emt 0:00:04]} Kh7 {[%emt 0:01:07]} 52. f7 {[%emt 0:00:06]} 1-0

[Event "Western Asian Girls Chess-ch 2023"]
[Site "Colombo"]
[Date "2023.11.30"]
[Round "2.4"]
[White "Tharushi, T H D Niklesha"]
[Black "Shohradova, Lala"]
[Result "0-1"]
[ECO "B14"]
[WhiteElo "1552"]
[BlackElo "1846"]
[Annotator "NA RC"]
[PlyCount "64"]
[EventDate "2023.11.30"]
[EventCountry "SRI"]
[SourceTitle "playchess.com"]
[Source "ChessBase"]
[SourceQuality "1"]
[TimeControl "5400+30"]

1. d4 {[%emt 0:00:07]} Nf6 {[%emt 0:02:50]} 2. c4 {[%emt 0:00:19]} e6 {[%emt 0:01:34]} 3. Nc3 {[%emt 0:00:18]} Bb4 {[%emt 0:00:26]} 4. Qc2 {[%emt 0:00:08]} c5 {[%emt 0:00:13]} 5. e3 {[%emt 0:01:43]} cxd4 {[%emt 0:02:22]} 6. exd4 {[%emt 0:00:03]} d5 {[%emt 0:00:17]} 7. Nf3 {[%emt 0:04:29]} O-O {[%emt 0:02:22]} 8. Bg5 {[%emt 0:01:51]} Nc6 {[%emt 0:06:45]} 9. a3 {[%emt 0:16:58]} Be7 {[%emt 0:02:13]} 10. Rd1 {[%emt 0:03:59]} h6 {[%emt 0:02:03]} 11. Bxf6 {[%emt 0:05:38]} Bxf6 {[%emt 0:00:30]} 12. cxd5 {[%emt 0:00:02]} exd5 {[%emt 0:00:22]} 13. Be2 {[%emt 0:02:05]} Be6 {[%emt 0:10:24]} 14. b4 {[%emt 0:02:23]} Rc8 {[%emt 0:03:34]} 15. Qb3 {[%emt 0:02:54]} Re8 {[%emt 0:02:54]} 16. O-O {[%emt 0:00:23]} Bg4 {[%emt 0:00:33]} 17. Rd3 {[%emt 0:11:52]} Bxf3 {[%emt 0:03:01]} 18. Bxf3 {[%emt 0:00:07]} Nxd4 {[%emt 0:00:07]} 19. Qxd5 {[%emt 0:00:16]} Rxc3 {[%emt 0:01:02]} 20. Rxc3 {[%emt 0:05:22]} Qxd5 {[%emt 0:00:18]} 21. Bxd5 {[%emt 0:00:04]} Ne2+ {[%emt 0:00:03]} 22. Kh1 {[%emt 0:00:07]} Nxc3 {[%emt 0:00:39]} 23. Bxb7 {[%emt 0:00:07]} Re2 {[%emt 0:00:42]} 24. g3 {[%emt 0:04:46]} Ra2 {[%emt 0:00:35]} 25. Re1 {[%emt 0:00:13]} Rxf2 {[%emt 0:00:43]} 26. Ba6 {[%emt 0:00:47]} g6 {[%emt 0:00:56]} 27. Bc4 {[%emt 0:00:38]} Kf8 {[%emt 0:02:03]} 28. Re3 {[%emt 0:01:38]} Nd1 {[%emt 0:00:25]} 29. Re1 {[%emt 0:00:21]} Rd2 {[%emt 0:00:34]} 30. Rf1 {[%emt 0:00:34]} Nf2+ {[%emt 0:00:35]} 31. Kg2 {[%emt 0:00:26]} Ng4+ {[%emt 0:00:07]} 32. Kh3 {[%emt 0:00:45]} h5 {[%emt 0:00:12]} 0-1

[Event "Western Asian Girls Chess-ch 2023"]
[Site "Colombo"]
[Date "2023.11.30"]
[Round "2.5"]
[White "Sagar Siya"]
[Black "Sachi Jain"]
[Result "0-1"]
[ECO "C68"]
[WhiteElo "1537"]
[BlackElo "1743"]
[Annotator "NA RC"]
[PlyCount "58"]
[EventDate "2023.11.30"]
[EventCountry "SRI"]
[SourceTitle "playchess.com"]
[Source "ChessBase"]
[SourceQuality "1"]
[TimeControl "5400+30"]

1. e4 {[%emt 0:00:02]} e5 {[%emt 0:01:56]} 2. Nf3 {[%emt 0:00:10]} Nc6 {[%emt 0:00:09]} 3. Bb5 {[%emt 0:00:08]} a6 {[%emt 0:00:14]} 4. Bxc6 {[%emt 0:00:07]} dxc6 {[%emt 0:00:07]} 5. Nc3 {[%emt 0:00:08]} Bc5 {[%emt 0:01:28]} 6. Nxe5 {[%emt 0:06:35]} Bxf2+ {[%emt 0:00:47]} 7. Kxf2 {[%emt 1:26:50]} Qd4+ {[%emt 0:00:02]} 8. Ke1 {[%emt 0:00:00]} Qxe5 {[%emt 0:00:11]} 9. d4 {[%emt 0:00:00]} Qe7 {[%emt 0:00:52]} 10. Qe2 {[%emt 0:00:00]} h6 {[%emt 0:01:17]} 11. Rf1 {[%emt 0:00:00]} Nf6 {[%emt 0:02:16]} 12. Bf4 {[%emt 0:00:00]} Bg4 {[%emt 0:10:27]} 13. Qe3 {[%emt 0:00:00]} O-O-O {[%emt 0:00:38]} 14. Kf2 {[%emt 0:00:00]} Bf5 {[%emt 0:09:58]} 15. Kg1 {[%emt 0:00:00]} Bxe4 {[%emt 0:00:57]} 16. Rae1 {[%emt 0:00:00]} Rhe8 {[%emt 0:03:53]} 17. Be5 {[%emt 0:00:00]} Bg6 {[%emt 0:04:08]} 18. Qg3 {[%emt 0:00:00]} Qd7 {[%emt 0:02:32]} 19. Na4 {[%emt 0:00:00]} Nh5 {[%emt 0:07:56]} 20. Qb3 {[%emt 0:00:00]} b6 {[%emt 0:04:41]} 21. Qa3 {[%emt 0:00:00]} Kb7 {[%emt 0:06:46]} 22. Re3 {[%emt 0:00:00]} Bxc2 {[%emt 0:02:01]} 23. Rb3 {[%emt 0:00:00]} Bxb3 {[%emt 0:01:41]} 24. Qxb3 {[%emt 0:00:00]} Ka7 {[%emt 0:01:45]} 25. Rxf7 {[%emt 0:00:00]} Re7 {[%emt 0:00:08]} 26. Bxc7 {[%emt 0:01:06]} Qxd4+ {[%emt 0:02:13]} 27. Kf1 {[%emt 0:00:30]} Rxf7+ {[%emt 0:01:08]} 28. Qxf7 {[%emt 0:00:18]} Qd1+ {[%emt 0:00:01]} 29. Kf2 {[%emt 0:00:15]} Rd2+ {[%emt 0:00:02]} 0-1

[Event "Western Asian Girls Chess-ch 2023"]
[Site "Colombo"]
[Date "2023.11.30"]
[Round "2.6"]
[White "Gunawardhana, Devindya Oshini"]
[Black "Ekaratne, Chenaya"]
[Result "1-0"]
[ECO "B72"]
[WhiteElo "1741"]
[BlackElo "1217"]
[Annotator "NA RC"]
[PlyCount "87"]
[EventDate "2023.11.30"]
[EventCountry "SRI"]
[SourceTitle "playchess.com"]
[Source "ChessBase"]
[SourceQuality "1"]
[TimeControl "5400+30"]

1. e4 {[%emt 0:00:04]} c5 {[%emt 1:31:00]} 2. Nf3 {[%emt 0:00:07]} d6 {[%emt 0:00:00]} 3. d4 {[%emt 0:00:13]} cxd4 {[%emt 0:00:00]} 4. Nxd4 {[%emt 0:00:15]} Nf6 {[%emt 0:00:00]} 5. Nc3 {[%emt 0:00:06]} g6 {[%emt 0:00:00]} 6. Be3 {[%emt 0:00:06]} Nc6 {[%emt 0:00:00]} 7. f3 {[%emt 0:00:19]} h5 {[%emt 0:00:00]} 8. Qd2 {[%emt 0:00:14]} Nxd4 {[%emt 0:00:00]} 9. Bxd4 {[%emt 0:02:16]} Bh6 {[%emt 0:00:00]} 10. Be3 {[%emt 0:00:45]} Bxe3 {[%emt 0:00:00]} 11. Qxe3 {[%emt 0:00:07]} Be6 {[%emt 0:00:00]} 12. O-O-O {[%emt 0:13:01]} Qa5 {[%emt 0:00:00]} 13. Kb1 {[%emt 0:01:21]} Rc8 {[%emt 0:00:00]} 14. a3 {[%emt 0:00:17]} Kf8 {[%emt 0:00:00]} 15. Qd4 {[%emt 0:06:01]} Qc5 {[%emt 0:00:00]} 16. Qxc5 {[%emt 0:07:21]} Rxc5 {[%emt 0:00:00]} 17. Bd3 {[%emt 0:05:09]} Kg7 {[%emt 0:00:00]} 18. Ne2 {[%emt 0:05:32]} Bc4 {[%emt 0:00:00]} 19. Nf4 {[%emt 0:02:33]} Rd8 {[%emt 0:00:00]} 20. g3 {[%emt 0:06:36]} e5 {[%emt 0:00:00]} 21. Bxc4 {[%emt 0:02:21]} exf4 {[%emt 0:00:00]} 22. Bb3 {[%emt 0:04:06]} fxg3 {[%emt 0:00:00]} 23. hxg3 {[%emt 0:00:05]} Kf8 {[%emt 0:00:00]} 24. Rd3 {[%emt 0:01:57]} Ke7 {[%emt 0:11:30]} 25. Re1 {[%emt 0:02:11]} Nd7 {[%emt 0:00:00]} 26. f4 {[%emt 0:04:17]} f6 {[%emt 0:00:00]} 27. Rh1 {[%emt 0:04:05]} Nb6 {[%emt 0:00:00]} 28. Ba2 {[%emt 0:06:46]} Rdc8 {[%emt 0:00:00]} 29. c3 {[%emt 0:02:34]} Na4 {[%emt 0:00:00]} 30. Kc2 {[%emt 0:04:00]} b5 {[%emt 0:00:00]} 31. g4 {[%emt 0:03:02]} a5 {[%emt 0:00:00]} 32. f5 {[%emt 0:05:03]} b4 {[%emt 0:00:00]} 33. Bb3 {[%emt 0:00:08]} Nb6 {[%emt 0:04:30]} 34. fxg6 {[%emt 0:14:32]} Rg5 {[%emt 0:00:00]} 35. Rxh5 {[%emt 0:00:00]} Rxg6 {[%emt 0:00:00]} 36. Rh7+ {[%emt 0:00:00]} Kf8 {[%emt 0:00:00]} 37. Rxd6 {[%emt 0:00:00]} a4 {[%emt 0:00:00]} 38. Be6 {[%emt 0:00:00]} b3+ {[%emt 0:00:00]} 39. Kc1 {[%emt 0:00:00]} Rb8 {[%emt 0:00:00]} 40. Rh8+ {[%emt 0:00:00]} Ke7 41. Rxb8 Kxd6 {[%emt 0:04:00]} 42. Rxb6+ {[%emt 0:00:00]} Ke5 {[%emt 0:00:00]} 43. Bd7 {[%emt 0:00:00]} Rh6 {[%emt 0:00:00]} 44. Rb5+ {[%emt 0:00:00]} 1-0